Cogmind - Beta 13 *** ADVENTURER MODE // 2024.08.03 @ 00:06:02 Player: Fqbits Result: Core destroyed Performance ------------- Evolutions (0) 0 Regions Visited (3) 600 Robots Destroyed (13) 65 Value Destroyed (335) 335 Prototype IDs (0) 0 Alien Tech Used (0) 0 Bonus (0) 0 TOTAL SCORE: 1000 Bonus ------- None Cogmind --------- Core Integrity 0/250 Matter 67/300 Energy 200/200 System Corruption 0% Temperature Cool (0) Movement Walking (120) Location -10/Subcaves Parts ------- > --- POWER (1) -------- Subdweller Power Source > --- PROPULSION (2) --- Aluminum Leg > --- UTILITY (2) ------ (None) > --- WEAPON (2) ------- (None) > --- INVENTORY (5) ---- Light Ion Engine Makeshift Power Source Subdweller Monowheel Peak State ------------ > --- POWER ------------ Light Nuclear Core > --- PROPULSION ------- Aluminum Leg Aluminum Leg > --- UTILITY ---------- Improved Heat Sink Terrain Scanner > --- WEAPON ----------- Medium Laser Barrage Gun > --- INVENTORY -------- Light Ion Engine Rocket Launcher [Rating: 13] Favorites ----------- Power Subdweller Power Source Engine Subdweller Power Source Power Core Light Nuclear Core Propulsion Aluminum Leg Leg Aluminum Leg Wheel Wheel Flight Unit Flight Unit Utility Terrain Scanner Device Terrain Scanner Weapon Medium Laser Energy Gun Medium Laser Ballistic Gun Barrage Gun Launcher Rocket Launcher Special Weapon Flamer Build | -11 -10 -10 -10 ------- Run | Yrd Mat Min Sub Slots Evolved . | . . . . Power . | . . . . Propulsion . | . . . . Utility . | . . . . Weapon . | . . . . Parts Attached 24 | . 2 13 9 Power 3 | . . 2 1 Engine 2 | . . 1 1 Core 1 | . . 1 . Reactor . | . . . . Propulsion 10 | . 2 8 . Treads . | . . . . Leg 2 | . . 2 . Wheel 6 | . 2 4 . Hover . | . . . . Flight 2 | . . 2 . Utility 3 | . . 2 1 Device 3 | . . 2 1 Storage . | . . . . Processor . | . . . . Hackware . | . . . . Protection . | . . . . Artifact . | . . . . Weapon 8 | . . 1 7 Energy Gun 1 | . . 1 . Energy Cannon . | . . . . Ballistic Gun 3 | . . . 3 Ballistic Cannon . | . . . . Launcher 1 | . . . 1 Special Weapon 3 | . . . 3 Impact Weapon . | . . . . Slashing Weapon . | . . . . Piercing Weapon . | . . . . Special Melee Weapon . | . . . . Unidentified Prototypes . | . . . . Parts Lost 9 | . . 1 8 Power 1 | . . . 1 Propulsion 2 | . . 1 1 Utility 1 | . . . 1 Weapon 5 | . . . 5 Highest Loss Streak 4 | . . 1 4 To Critical Strikes . | . . . . Average Slot Usage (%) 54 | . . 70 50 Engine 8 | . . 3 11 Core 4 | . . 8 2 Leg 15 | . . 17 16 Flight 2 | . . 6 . Device 10 | . . 20 7 Energy Gun 5 | . . 12 2 Ballistic Gun 3 | . . . 4 Special Weapon 2 | . . . 4 Naked Turns 145 | . 93 52 . Heaviest Build 12 | . . 9 12 Greatest Support 20 | 3 3 20 20 Greatest Overweight (x) 1 | . . 1 1 Average Overweight (x) . | . . . . Largest Inventory Capacity 5 | 5 5 5 5 Average Capacity 5 | 5 5 5 5 Most Carried 5 | 5 5 5 5 Average Carried 2 | 3 4 2 3 Final Capacity 5 | 5 5 5 5 Final Carried 5 | 5 5 2 3 Class Distribution -------------------- 77% | Mutant 22% | Scavenger-Mutant Dominant Class ---------------- Mutant | -10/Materials Scavenger-Mutant | -10/Mines Mutant | -10/Subcaves Resources | -11 -10 -10 -10 ----------- Run | Yrd Mat Min Sub Matter Collected 424 | 200 . 150 74 Remotely . | . . . . Salvage Created 332 | . . 153 179 Parts 24 | . . 16 8 Haulers Intercepted . | . . . . Recyclers Shooed . | . . . . Parts Field Recycled . | . . . . Retrieved Matter . | . . . . Parts Self-Destructed 3 | . . . 3 Prevented . | . . . . Kills | -11 -10 -10 -10 ------- Run | Yrd Mat Min Sub Combat Hostiles Destroyed 13 | . . 6 7 Guns 9 | . . 6 3 Cannons 4 | . . . 4 Classes Destroyed 3 | . . 2 1 Swarmer 6 | . . 3 3 Grunt 3 | . . 3 . Subdweller 4 | . . . 4 Best Kill Streak 3 | . . 3 3 Combat Bots Only 3 | . . 3 3 Max Kills in Single Turn 1 | . . 1 1 Gunslinging . | . . . . Exploded . | . . . . Melee . | . . . . Uniques/NPCs Destroyed . | . . . . Combat | -11 -10 -10 -10 -------- Run | Yrd Mat Min Sub Hostile Shots Fired 84 | . . 15 69 Missed 31 | . . 5 26 Damage Taken 829 | . . 89 740 Core 252 | . . 29 223 Absorbed by Shields . | . . . . Ignored by Resistances 238 | . . 28 210 Core Remaining (%) 100 | 100 . . . Volleys Fired 109 | . . 16 93 Largest 2 | . . 1 2 Hottest 200 | . . 50 200 Shots Fired 125 | . . 16 109 Gun 92 | . . 16 76 Cannon . | . . . . Launcher 4 | . . . 4 Special 29 | . . . 29 Kinetic 60 | . . . 60 Thermal 61 | . . 16 45 Explosive 4 | . . . 4 Electromagnetic . | . . . . Robot Hit Streak 13 | . . 8 13 Robot Miss Streak 1 | . . 1 1 Penetration Max . | . . . . Secondary Targets . | . . . . Shots Hit Robots 63 | . . 13 50 Core Hits 23 | . . 10 13 Critical Kills . | . . . . Critical Parts Destroyed . | . . . . Critical Strikes 6 | . . 1 5 Burn 6 | . . 1 5 Melee Attacks . | . . . . Impact . | . . . . Slashing . | . . . . Piercing . | . . . . Sneak Attacks . | . . . . Combat Hostiles . | . . . . Follow-up Attacks . | . . . . Damage Inflicted 921 | . . 161 760 Guns 771 | . . 161 610 Cannons . | . . . . Explosions . | . . . . Melee . | . . . . Ramming 17 | . . . 17 Kinetic 432 | . . . 432 Thermal 472 | . . 161 311 Explosive . | . . . . Electromagnetic . | . . . . Impact . | . . . . Slashing . | . . . . Piercing . | . . . . Highest Corruption . | . . . . Average Corruption . | . . . . Corruption Purged . | . . . . Corruption Blocked . | . . . . Overload Shots . | . . . . Overflow Damage . | . . . . Projectiles . | . . . . Explosions . | . . . . Melee . | . . . . Knockbacks . | . . . . Impact . | . . . . Kinetic . | . . . . Secondary . | . . . . Self-Inflicted Damage 21 | . . . 21 Shots 1 | . . . 1 Rammed . | . . . . Targets Rammed 8 | . . . 8 Kicked 8 | . . . 8 Crushed . | . . . . Highest Temperature 132 | . . 132 2 Average Temperature 49 | . . 54 1 Received Heat Transfer 231 | . . 45 186 Siege Activations . | . . . . Robots Corrupted . | . . . . Combat Hostiles . | . . . . Parts Fried . | . . . . Impact Corruptions . | . . . . Robots Melted . | . . . . Combat Hostiles . | . . . . Parts Melted 2 | . . 1 1 Heat Transferred 2661 | . . 555 2106 Parts Sabotaged . | . . . . Parts Stolen . | . . . . Parts Stripped . | . . . . Power Chain Reactions . | . . . . Alert | -11 -10 -10 -10 ------- Run | Yrd Mat Min Sub Peak Influence 166 | . 19 166 . Initial 6 | . . 6 . Average 58 | . 4 68 . Maximum Alert Level . | . . . . Low Security (%) 100 | 100 100 100 . Level 1 . | . . . . Level 2 . | . . . . Level 3 . | . . . . Level 4 . | . . . . Level 5 . | . . . . High Security . | . . . . Max Security . | . . . . Squads Dispatched . | . . . . Investigation . | . . . . Extermination . | . . . . Reinforcement . | . . . . Assault . | . . . . Garrison . | . . . . Intercept . | . . . . Searches Triggered . | . . . . Construction Impeded . | . . . . Haulers Reinforced . | . . . . Active Scanning Responses . | . . . . Cargo Convoy Interrupts . | . . . . Stealth | -11 -10 -10 -10 --------- Run | Yrd Mat Min Sub Distress Signals . | . . . . Communications Jammed . | . . . . Distress Signals . | . . . . Times Spotted 16 | . . 8 8 Peak Tracking Total 5 | . . 3 5 Tactical Retreats 3 | . . 2 1 Traps | -11 -10 -10 -10 ------- Run | Yrd Mat Min Sub Traps Triggered 1 | . . . 1 Indirectly . | . . . . Trap Hack Attempts . | . . . . Triggered . | . . . . Disarmed . | . . . . Reprogrammed . | . . . . Reused . | . . . . Traps Extracted . | . . . . Installed . | . . . . Triggered . | . . . . Machines | -11 -10 -10 -10 ---------- Run | Yrd Mat Min Sub Machines Disabled . | . . . . Max in Single Turn . | . . . . Machines Repaired . | . . . . Machines Dismantled . | . . . . Machines Sabotaged . | . . . . Overloaded Fab Kills . | . . . . Hacking | -11 -10 -10 -10 --------- Run | Yrd Mat Min Sub Machines Accessed 4 | . 4 . . Terminals 4 | . 4 . . Fabricators . | . . . . Repair Stations . | . . . . Recycling Units . | . . . . Scanalyzers . | . . . . Garrison Access . | . . . . Total Hacks 10 | . 10 . . Successful 7 | . 7 . . Failed 3 | . 3 . . Catastrophic . | . . . . Database Lockouts . | . . . . Manual . | . . . . Terminals 10 | . 10 . . Fabricators . | . . . . Repair Stations . | . . . . Recycling Units . | . . . . Scanalyzers . | . . . . Garrison Access . | . . . . Terminal Hacks 7 | . 7 . . Record 1 | . 1 . . Locate Traps 1 | . 1 . . Patrol Status 1 | . 1 . . Registered Prototypes 1 | . 1 . . Zone Layout 3 | . 3 . . Fabricator Hacks . | . . . . Repair Station Hacks . | . . . . Recycling Unit Hacks . | . . . . Scanalyzer . | . . . . Garrison Access Hacks . | . . . . Unauthorized Hacks . | . . . . Terminals . | . . . . Fabricators . | . . . . Repair Stations . | . . . . Recycling Units . | . . . . Scanalyzers . | . . . . Garrison Access . | . . . . Data Cores Recovered . | . . . . Used . | . . . . Hacking Detections 3 | . 3 . . Full Trace Events . | . . . . Feedback Events . | . . . . Feedback Blocked . | . . . . Robot Schematics Acquired . | . . . . Robots Built . | . . . . Authchips . | . . . . Time . | . . . . Total Robot Build Rating . | . . . . Part Schematics Acquired . | . . . . Parts Built . | . . . . Authchips . | . . . . Time . | . . . . Total Part Build Rating . | . . . . Parts Repaired . | . . . . Time . | . . . . Parts Recycled . | . . . . Recycled Matter . | . . . . Retrieved Matter . | . . . . Retrieved Components . | . . . . Parts Scanalyzed . | . . . . Part Schematics Acquired . | . . . . Parts Damaged . | . . . . Bothacking | -11 -10 -10 -10 ------------ Run | Yrd Mat Min Sub Used RIF Installer . | . . . . Robots Hacked . | . . . . Non-combat . | . . . . Combat . | . . . . Robot Hacks Applied . | . . . . Relay Couplers Released . | . . . . Fabnet Peak Effective % . | . . . . Robots Rewired . | . . . . Allies Hacked . | . . . . Hacks Repelled . | . . . . Allies | -11 -10 -10 -10 -------- Run | Yrd Mat Min Sub Total Allies . | . . . . Largest Group . | . . . . Highest-Rated Group . | . . . . Highest-Rated Ally . | . . . . Total Orders . | . . . . Ally Attacks . | . . . . Total Damage . | . . . . Kills . | . . . . Allies Corrupted . | . . . . Allies Melted . | . . . . Intel | -11 -10 -10 -10 ------- Run | Yrd Mat Min Sub Robot Analysis Total . | . . . . Derelict Logs Recovered 3 | . . 1 2 Drone Launches . | . . . . Drone Recoveries . | . . . . Exploration | -11 -10 -10 -10 ------------- Run | Yrd Mat Min Sub Turns Passed 2209 | 27 95 648 1439 Spaces Moved 1409 | 45 110 488 766 Core 255 | 45 110 100 . Treads . | . . . . Legs 877 | . . 111 766 Wheels 8 | . . 8 . Hover . | . . . . Flight 269 | . . 269 . Fastest Speed 37 | 50 50 37 120 Average Speed 94 | 50 50 62 124 Slowest Speed 190 | 50 50 120 190 Overloaded Moves . | . . . . Propulsion Burnouts . | . . . . Robots Hopped . | . . . . Cave-ins Triggered . | . . . . Exploration Rate (%) 41 | 3 27 96 38 Regions Visited 3 Branch Regions 2 Pre-discovered Areas 1 | . . 1 . Known Exits Taken . | . . . . Unknown Exits Taken 3 | 1 1 1 . Scrap Searched 3 | . . 2 1 Spaces Dug 10 | . . . 10 Terrain Destroyed 48 | . . . 48 Melee . | . . . . Projectile . | . . . . AOE 48 | . . . 48 Terrain Rammed 1 | . . . 1 Walls Destroyed . | . . . . Machines Disabled . | . . . . Actions | -11 -10 -10 -10 --------- Run | Yrd Mat Min Sub Total 2138 | 49 150 821 1118 Wait 553 | . 37 287 229 Move 1406 | 44 109 487 766 Hop . | . . . . Pick Up 22 | 5 . 9 8 Fast Attach . | . . . . Attach 21 | . 2 12 7 Detach 8 | . 2 4 2 Swap 3 | . . 1 2 Drop 8 | . . 5 3 Fire 109 | . . 16 93 Melee . | . . . . Ram . | . . . . Kick 8 | . . . 8 Crush . | . . . . Escape Stasis . | . . . . Rewire . | . . . . Trap . | . . . . Miscellaneous . | . . . . Route ------- -11/Scrapyard -10/Materials (discovered 2 exits: [Mat] / [*Min]) -10/Mines (discovered 3 exits: [*Mat x2] / [*Sub]) -10/Subcaves History --------- Turn | Location | Event 17 | -11/Scrapyard | Discovered new exit (range 15) 28 | -11/Scrapyard | Entered Materials 33 | -10/Materials | Discovered new exit (range 12) 105 | -10/Materials | Discovered new exit (range 9) 123 | -10/Materials | Entered Mines 138 | -10/Mines | Received a Rocket Launcher from a helpful Derelict 213 | -10/Mines | Learned location of Zion (-7) 300 | -10/Mines | Build established: Mutant 318 | -10/Mines | Discovered new exit (range 9) 457 | -10/Mines | Discovered new exit (range 14) 675 | -10/Mines | Build established: Scavenger-Mutant 684 | -10/Mines | Discovered new exit (range 6) 771 | -10/Mines | Entered Subcaves 968 | -10/Subcaves | Learned 2 Materials zone layouts 1018 | -10/Subcaves | Ambushed by Subdweller buried in earth 1056 | -10/Subcaves | Core integrity fell below 50% 1080 | -10/Subcaves | Lost 4 parts (1p1n2w) 1164 | -10/Subcaves | Build established: Mutant 1220 | -10/Subcaves | Shifting Twisted Machinery released Flamer 1238 | -10/Subcaves | Learned Materials emergency access door positions 1239 | -10/Subcaves | Shifting Twisted Machinery released Flamer 1252 | -10/Subcaves | Shifting Twisted Machinery released Sub. Monowheel 1615 | -10/Subcaves | A swath of the cavern ceiling suddenly collapsed 1631 | -10/Subcaves | Core integrity fell below 20% 2210 | -10/Subcaves | Core destroyed Last Messages --------------- 01484_ 8S-G01(R) destroyed. 01490_ Acquired 7 matter. 01612_ S-10 Pest suffers critical hit (Burn). 01612_ S-10 Pest destroyed. A swath of the cavern ceiling suddenly collapses. 01618_ S-10 Pest suffers critical hit (Burn). 01621_ Flight Unit melted. 01621_ S-10 Pest destroyed. 01627_ Subatomizers dissect the Lgt. Assault Rifle. 01628_ Lgt. Assault Rifle fries itself beyond repair. 01633_ S-10 Pest suffers critical hit (Burn). 01633_ S-10 Pest destroyed. 01638_ Acquired 12 matter. 01646_ Acquired 10 matter. 01655_ Triggered Shrapnel Trap. 01655_ An expanding cloud of shrapnel blasts out in all directions. 01655_ Flamer destroyed. 01655_ Terrain Scanner destroyed. 02102_ EA-PVS(u) builds Twisted Machinery. 02210_ Kicked Twisted Machinery. Map ----- +----------------------------------------------------+ | ?#??## #??????????????????????????????#####""" | | ###?## ##????????????????????????????## #?##"" | | ""### #???????????????????????????## #?#""### | | """ #???????????????????????????# #### ### | | "" #???????????????????????????## ## ## | | " #????????????????????????????# "" | | # ##????????????????????????????# "" | | # ##???????????????????????????## # | | #### #???????????????????????????# ## | | #??# #???????????????????????????# # | | ???# ##???????????????????????????# ### | | ???## ##????????????????????????????# #?## | | ???## #????????????#???????????????# ### | | ???# #???????????#????????????????# # | | ???## #????????????????????????????# # | | ???# ##??????????????????#?????????# # | | ???## #????????????????????????????## | | ???## ##??????######?????????????????#### ## | | ???# #?????## " ##?????########?????# #### | | ???## ##????# # #????## ####### #### # | | ????# #????# ## #????# ## # # | | ????# #???## #????# ## # # | | ????# ##### #### ###### ### ### #### | | ## # &% ####"" " # ## #??# | | # = ## "" "" #### | | # #" """"""@ ## ## | | ##" """"""""### ### | | #### # ###" ##?##" ##?### | | # #??### ####?#######???#########????## | | # ????###??????#???#?????#??##???????# | | # ?????????????#????????#???????#????# | | # ???????????#??????????????????????## ## | | ## ???????????????????????????????????###? | | # ##?# ???????????????#????????????????????## | | # #?????????????????????????????????????????## | | ???????????????????????#???????????????????# | | ???????????????????????????????????????????# | | ? ???????????????????????????????????#??????#? | | ???? ???????????????????????????????????????????#? | | ?????????????????????????????????????????????????? | | ?????????????????????????????????????????????????? | | ?????????????????????????????????????????????????? | | ?????????????????????????????????????????????????? | | ?????????????????????????????????????????????????? | | ?????????????????????????????????????????????????? | | ?????????????????????????????????????????????????? | | ?????????????????????????????????????????????????? | | ?????????????????????????????????????????????????? | | ?????????????????????????????????????????????????? | | ?????????????????????????????????????????????????? | +----------------------------------------------------+ Best States ------------- Heat Dissipation 39 Energy Generation 15 Energy Capacity 200 Matter Stores 300 Matter Capacity 300 Sight Range 16 Terrain Scan Range 14 Terrain Scan Density 10 Resistance: KI 20 Resistance: TH 20 Resistance: EX 20 Resistance: EM 20 Resistance: I 20 Resistance: S 20 Resistance: P 20 Evasion (%) 62 Offensive Hacking 10 Item Schematics ----------------- None Robot Schematics ------------------ None Fabricated ------------ Nothing Alien Tech Used ----------------- None Achievements -------------- None Challenges ------------ None Game ------ Seed BoreCoolingSpoofer Manual? 0 Play Time 00:29:13 Cumulative 24.2 hours Start 2024.08.02 @ 08:38:15 End 2024.08.03 @ 00:06:02 Sessions 2 Manual Loads 0 Difficulty Adventurer Special Mode None Game No. 37 Rogue 33 Adventurer 4 Explorer 0 Win Type - Total 0 Types 0/0/0/0/0/0/0/0/0 Lore% 21 Gallery% 26 Achievement% 26 Wizard Run 0 Options --------- Layout 0 ASCII 0 Keyboard 0 Movement Numpad Keybinds 0 Fullscreen 2 Font 24/Smallcaps Map View 113x50 Zoom Use 0% Tactical HUD 1 Map Filters NONE Filters NONE Steam 1 RUN: 038ab072-fd74-4c12-aa37-05de17c71494